Workbook

Sheet Berechnung
B2: ABLÖSERECHNER
B3: Version 1.01 | L3: =TODAY() -> 2016-01-12
B5: Kredit | D5: Abschlussdatum | F5: ursprünglicher Kreditbetrag (incl. Bearb.gebühr + Einmalbetrag RSV) | H5: ursprüngliche Kreditlaufzeit (Monate) | J5: monatliche Rate | L5: voraussichtlicher Ablösebetrag
B7: 1 | D7: 2012-01-01 | F7: 25,000 € | H7: 60 | J7: 500 € | L7: =-Berechnung!$F$30*(1+J18)*(1+J20) -> 6,469 €
B9: 2 | L9: =IF(ISERROR(F172),0,-Berechnung!$F$172*(1+J18)*(1+J20)) -> 0
B11: 3 | L11: =IF(ISERROR(F306),0,-Berechnung!$F$306*(1+J18)*(1+J20)) -> 0
B13: beantragter Neukredit | F13: 40,000 € | H13: verfügbarer Kreditbetrag (nach Ablösungen) | L13: =F13-(L7+L9+L11) -> 33,531 €
B15: Die Berechnung erfolgt näherungsweise anhand der von Ihnen gemachten Angaben. Die Berechnungsergebnisse sind unverbindlich und ersetzen nicht die Endabrechnung des abzulösenden Darlehenskontos durch den jeweiligen Kreditgeber, die eine Erstattung oder Nachforderung zum Gegenstand haben kann.
J18: 10%
J20: 2%
B22: Kapital | F22: =Berechnung!F7 -> 25,000.00 € | H22: Tilgungsvariante: | J22: Standard | K22: Standard
B23: Bearbeitungsentgelt | F23: 0.00 € | H23: Jahr 1 | J23: =Berechnung!J7 -> 500.00 € | K23: Dynamisierung
B24: Anzahl der Raten | F24: =Berechnung!H7 -> 60 | H24: Jahr 2 | J24: =IF(J22="Standard",J23,J23*1.05) -> 500.00 €
B25: Einmalbetrag für RSV | H25: Jahr 3 | J25: =IF(J22="Standard",J23,J24*1.05) -> 500.00 €
B26: Darlehensnennbetrag | F26: =F22+F23+F25 -> 25,000.00 € | H26: Jahr 4 | J26: =IF(J22="Standard",J23,J25*1.05) -> 500.00 €
B27: Nominaler Zinssatz | F27: =G27 -> 7.42010% | G27: =RATE(F24,-ABS(J23),F26,0,0,0.1)*12 -> 7.42010% | H27: Jahr 5 | J27: =IF(J22="Standard",J23,J26*1.05) -> 500.00 €
B28: Effektiver Jahreszins | H28: Jahr 6 | J28: =IF(J22="Standard",J23,J27*1.05) -> 500.00 €
B29: Summe aller Zahlungen | H29: Jahr 7 | J29: =IF(J22="Standard",J23,J28*1.05) -> 500.00 €
D30: offener Saldo | F30: =PV(F27/12,F24-J30,J23,0,0) -> -5,765.65 € | H30: Anzahl gezahlter Raten | J30: =DATEDIF(D32,TODAY(),"M") -> 48
B31: Jahr | C31: Monat | D31: Datum | E31: Kredithöhe | F31: Rate | G31: Tilgung | H31: Zins | I31: Rest | J31: Sondertilgungen
B32: 1 | C32: 1 | D32: =Berechnung!D7 -> 2012-01-01 | E32: =F26 -> 25,000.00 € | F32: =IF(E32=0,0,$J$23) -> 500.00 € | G32: =F32-H32 -> 345.41 € | H32: =E32*$F$27/12 -> 154.59 € | I32: =IF((E32-G32)<0,0,(E32-G32)) -> 24,654.59 €
C33: 2 | D33: =DATE(YEAR(D32),MONTH(D32)+1,DAY(D32)) -> 2012-02-01 | E33: =IF((I32-J32)<0,0,(I32-J32)) -> 24,654.59 € | F33: =IF(E33=0,0,$J$23) -> 500.00 € | G33: =F33-H33 -> 347.55 € | H33: =E33*$F$27/12 -> 152.45 € | I33: 24,307.03 €
C34: 3 | D34: =DATE(YEAR(D33),MONTH(D33)+1,DAY(D33)) -> 2012-03-01 | E34: 24,307.03 € | F34: 500.00 € | G34: =F34-H34 -> 349.70 € | H34: 150.30 € | I34: 23,957.34 €
C35: 4 | D35: 2012-04-01 | E35: 23,957.34 € | F35: 500.00 € | G35: 351.86 € | H35: 148.14 € | I35: 23,605.47 €
C36: 5 | D36: 2012-05-01 | E36: 23,605.47 € | F36: 500.00 € | G36: 354.04 € | H36: 145.96 € | I36: 23,251.44 €
C37: 6 | D37: 2012-06-01 | E37: 23,251.44 € | F37: 500.00 € | G37: 356.23 € | H37: 143.77 € | I37: 22,895.21 €
C38: 7 | D38: 2012-07-01 | E38: 22,895.21 € | F38: 500.00 € | G38: 358.43 € | H38: 141.57 € | I38: 22,536.78 €
C39: 8 | D39: 2012-08-01 | E39: 22,536.78 € | F39: 500.00 € | G39: 360.65 € | H39: 139.35 € | I39: 22,176.13 €
C40: 9 | D40: 2012-09-01 | E40: 22,176.13 € | F40: 500.00 € | G40: 362.88 € | H40: 137.12 € | I40: 21,813.26 €
C41: 10 | D41: 2012-10-01 | E41: 21,813.26 € | F41: 500.00 € | G41: 365.12 € | H41: 134.88 € | I41: 21,448.14 €
C42: 11 | D42: 2012-11-01 | E42: 21,448.14 € | F42: 500.00 € | G42: 367.38 € | H42: 132.62 € | I42: 21,080.76 €
C43: 12 | D43: 2012-12-01 | E43: 21,080.76 € | F43: 500.00 € | G43: 369.65 € | H43: 130.35 € | I43: 20,711.11 €
B44: 2 | C44: 13 | D44: 2013-01-01 | E44: 20,711.11 € | F44: 500.00 € | G44: 371.93 € | H44: 128.07 € | I44: 20,339.18 €
C45: 14 | D45: 2013-02-01 | E45: 20,339.18 € | F45: 500.00 € | G45: 374.23 € | H45: 125.77 € | I45: 19,964.94 €
C46: 15 | D46: 2013-03-01 | E46: 19,964.94 € | F46: 500.00 € | G46: 376.55 € | H46: 123.45 € | I46: 19,588.39 €
C47: 16 | D47: 2013-04-01 | E47: 19,588.39 € | F47: 500.00 € | G47: 378.88 € | H47: 121.12 € | I47: 19,209.52 €
C48: 17 | D48: 2013-05-01 | E48: 19,209.52 € | F48: 500.00 € | G48: 381.22 € | H48: 118.78 € | I48: 18,828.30 €
C49: 18 | D49: 2013-06-01 | E49: 18,828.30 € | F49: 500.00 € | G49: 383.58 € | H49: 116.42 € | I49: 18,444.72 €
C50: 19 | D50: 2013-07-01 | E50: 18,444.72 € | F50: 500.00 € | G50: 385.95 € | H50: 114.05 € | I50: 18,058.77 €
C51: 20 | D51: 2013-08-01 | E51: 18,058.77 € | F51: 500.00 € | G51: 388.34 € | H51: 111.66 € | I51: 17,670.44 €
C52: 21 | D52: 2013-09-01 | E52: 17,670.44 € | F52: 500.00 € | G52: 390.74 € | H52: 109.26 € | I52: 17,279.70 €
C53: 22 | D53: 2013-10-01 | E53: 17,279.70 € | F53: 500.00 € | G53: 393.15 € | H53: 106.85 € | I53: 16,886.55 €
C54: 23 | D54: 2013-11-01 | E54: 16,886.55 € | F54: 500.00 € | G54: 395.58 € | H54: 104.42 € | I54: 16,490.96 €
C55: 24 | D55: 2013-12-01 | E55: 16,490.96 € | F55: 500.00 € | G55: 398.03 € | H55: 101.97 € | I55: 16,092.94 €
B56: 3 | C56: 25 | D56: 2014-01-01 | E56: 16,092.94 € | F56: 500.00 € | G56: 400.49 € | H56: 99.51 € | I56: 15,692.44 €
C57: 26 | D57: 2014-02-01 | E57: 15,692.44 € | F57: 500.00 € | G57: 402.97 € | H57: 97.03 € | I57: 15,289.48 €
C58: 27 | D58: 2014-03-01 | E58: 15,289.48 € | F58: 500.00 € | G58: 405.46 € | H58: 94.54 € | I58: 14,884.02 €
C59: 28 | D59: 2014-04-01 | E59: 14,884.02 € | F59: 500.00 € | G59: 407.97 € | H59: 92.03 € | I59: 14,476.05 €
C60: 29 | D60: 2014-05-01 | E60: 14,476.05 € | F60: 500.00 € | G60: 410.49 € | H60: 89.51 € | I60: 14,065.56 €
C61: 30 | D61: 2014-06-01 | E61: 14,065.56 € | F61: 500.00 € | G61: 413.03 € | H61: 86.97 € | I61: 13,652.54 €
C62: 31 | D62: 2014-07-01 | E62: 13,652.54 € | F62: 500.00 € | G62: 415.58 € | H62: 84.42 € | I62: 13,236.96 €
C63: 32 | D63: 2014-08-01 | E63: 13,236.96 € | F63: 500.00 € | G63: 418.15 € | H63: 81.85 € | I63: 12,818.81 €
C64: 33 | D64: 2014-09-01 | E64: 12,818.81 € | F64: 500.00 € | G64: 420.74 € | H64: 79.26 € | I64: 12,398.07 €
C65: 34 | D65: 2014-10-01 | E65: 12,398.07 € | F65: 500.00 € | G65: 423.34 € | H65: 76.66 € | I65: 11,974.73 €
C66: 35 | D66: 2014-11-01 | E66: 11,974.73 € | F66: 500.00 € | G66: 425.96 € | H66: 74.04 € | I66: 11,548.78 €
C67: 36 | D67: 2014-12-01 | E67: 11,548.78 € | F67: 500.00 € | G67: 428.59 € | H67: 71.41 € | I67: 11,120.19 €
B68: 4 | C68: 37 | D68: 2015-01-01 | E68: 11,120.19 € | F68: 500.00 € | G68: 431.24 € | H68: 68.76 € | I68: 10,688.95 €
C69: 38 | D69: 2015-02-01 | E69: 10,688.95 € | F69: 500.00 € | G69: 433.91 € | H69: 66.09 € | I69: 10,255.04 €
C70: 39 | D70: 2015-03-01 | E70: 10,255.04 € | F70: 500.00 € | G70: 436.59 € | H70: 63.41 € | I70: 9,818.45 €
C71: 40 | D71: 2015-04-01 | E71: 9,818.45 € | F71: 500.00 € | G71: 439.29 € | H71: 60.71 € | I71: 9,379.17 €
C72: 41 | D72: 2015-05-01 | E72: 9,379.17 € | F72: 500.00 € | G72: 442.00 € | H72: 58.00 € | I72: 8,937.16 €
C73: 42 | D73: 2015-06-01 | E73: 8,937.16 € | F73: 500.00 € | G73: 444.74 € | H73: 55.26 € | I73: 8,492.42 €
C74: 43 | D74: 2015-07-01 | E74: 8,492.42 € | F74: 500.00 € | G74: 447.49 € | H74: 52.51 € | I74: 8,044.94 €
C75: 44 | D75: 2015-08-01 | E75: 8,044.94 € | F75: 500.00 € | G75: 450.25 € | H75: 49.75 € | I75: 7,594.68 €
C76: 45 | D76: 2015-09-01 | E76: 7,594.68 € | F76: 500.00 € | G76: 453.04 € | H76: 46.96 € | I76: 7,141.64 €
C77: 46 | D77: 2015-10-01 | E77: 7,141.64 € | F77: 500.00 € | G77: 455.84 € | H77: 44.16 € | I77: =IF((E77-G77)<0,0,(E77-G77)) -> 6,685.80 €
C78: 47 | D78: 2015-11-01 | E78: 6,685.80 € | F78: 500.00 € | G78: 458.66 € | H78: 41.34 € | I78: =IF((E78-G78)<0,0,(E78-G78)) -> 6,227.14 €
C79: 48 | D79: 2015-12-01 | E79: 6,227.14 € | F79: 500.00 € | G79: 461.50 € | H79: 38.50 € | I79: =IF((E79-G79)<0,0,(E79-G79)) -> 5,765.65 €
B80: 5 | C80: 49 | D80: 2016-01-01 | E80: 5,765.65 € | F80: 500.00 € | G80: 464.35 € | H80: 35.65 € | I80: =IF((E80-G80)<0,0,(E80-G80)) -> 5,301.30 €
C81: 50 | D81: 2016-02-01 | E81: =IF((I80-J80)<0,0,(I80-J80)) -> 5,301.30 € | F81: 500.00 € | G81: 467.22 € | H81: 32.78 € | I81: =IF((E81-G81)<0,0,(E81-G81)) -> 4,834.08 €
C82: 51 | D82: 2016-03-01 | E82: 4,834.08 € | F82: 500.00 € | G82: 470.11 € | H82: 29.89 € | I82: 4,363.97 €
C83: 52 | D83: 2016-04-01 | E83: 4,363.97 € | F83: 500.00 € | G83: 473.02 € | H83: 26.98 € | I83: 3,890.95 €
C84: 53 | D84: 2016-05-01 | E84: 3,890.95 € | F84: 500.00 € | G84: 475.94 € | H84: 24.06 € | I84: 3,415.01 €
C85: 54 | D85: 2016-06-01 | E85: 3,415.01 € | F85: 500.00 € | G85: 478.88 € | H85: 21.12 € | I85: 2,936.13 €
C86: 55 | D86: 2016-07-01 | E86: 2,936.13 € | F86: 500.00 € | G86: 481.84 € | H86: 18.16 € | I86: 2,454.29 €
C87: 56 | D87: 2016-08-01 | E87: 2,454.29 € | F87: 500.00 € | G87: 484.82 € | H87: 15.18 € | I87: 1,969.46 €
C88: 57 | D88: 2016-09-01 | E88: 1,969.46 € | F88: 500.00 € | G88: 487.82 € | H88: 12.18 € | I88: 1,481.64 €
C89: 58 | D89: 2016-10-01 | E89: 1,481.64 € | F89: 500.00 € | G89: 490.84 € | H89: 9.16 € | I89: 990.80 €
C90: 59 | D90: 2016-11-01 | E90: 990.80 € | F90: 500.00 € | G90: 493.87 € | H90: 6.13 € | I90: 496.93 €
C91: 60 | D91: 2016-12-01 | E91: 496.93 € | F91: 500.00 € | G91: 496.93 € | H91: 3.07 € | I91: 0.00 €
B92: 6 | C92: 61 | D92: 2017-01-01 | E92: 0.00 € | F92: 0.00 € | G92: 0.00 € | H92: 0.00 € | I92: 0.00 €
C93: 62 | D93: 2017-02-01 | E93: 0.00 € | F93: 0.00 € | G93: 0.00 € | H93: 0.00 € | I93: 0.00 €
C94: 63 | D94: 2017-03-01 | E94: 0.00 € | F94: 0.00 € | G94: 0.00 € | H94: 0.00 € | I94: 0.00 €
C95: 64 | D95: 2017-04-01 | E95: 0.00 € | F95: 0.00 € | G95: 0.00 € | H95: 0.00 € | I95: 0.00 €
C96: 65 | D96: 2017-05-01 | E96: 0.00 € | F96: 0.00 € | G96: 0.00 € | H96: 0.00 € | I96: 0.00 €
C97: 66 | D97: 2017-06-01 | E97: =IF((I96-J96)<0,0,(I96-J96)) -> 0.00 € | F97: =IF(E97=0,0,$J$23) -> 0.00 € | G97: 0.00 € | H97: =E97*$F$27/12 -> 0.00 € | I97: 0.00 €
C98: 67 | D98: =DATE(YEAR(D97),MONTH(D97)+1,DAY(D97)) -> 2017-07-01 | E98: 0.00 € | F98: 0.00 € | G98: =F98-H98 -> 0.00 € | H98: 0.00 € | I98: 0.00 €
C99: 68 | D99: 2017-08-01 | E99: 0.00 € | F99: 0.00 € | G99: 0.00 € | H99: 0.00 € | I99: 0.00 €
C100: 69 | D100: 2017-09-01 | E100: 0.00 € | F100: 0.00 € | G100: 0.00 € | H100: 0.00 € | I100: 0.00 €
C101: 70 | D101: 2017-10-01 | E101: 0.00 € | F101: 0.00 € | G101: 0.00 € | H101: 0.00 € | I101: 0.00 €
C102: 71 | D102: 2017-11-01 | E102: 0.00 € | F102: 0.00 € | G102: 0.00 € | H102: 0.00 € | I102: 0.00 €
C103: 72 | D103: 2017-12-01 | E103: 0.00 € | F103: 0.00 € | G103: 0.00 € | H103: 0.00 € | I103: 0.00 €
B104: 7 | C104: 73 | D104: 2018-01-01 | E104: 0.00 € | F104: 0.00 € | G104: 0.00 € | H104: 0.00 € | I104: 0.00 €
C105: 74 | D105: 2018-02-01 | E105: 0.00 € | F105: 0.00 € | G105: 0.00 € | H105: 0.00 € | I105: 0.00 €
C106: 75 | D106: 2018-03-01 | E106: 0.00 € | F106: 0.00 € | G106: 0.00 € | H106: 0.00 € | I106: 0.00 €
C107: 76 | D107: 2018-04-01 | E107: 0.00 € | F107: 0.00 € | G107: 0.00 € | H107: 0.00 € | I107: 0.00 €
C108: 77 | D108: 2018-05-01 | E108: 0.00 € | F108: 0.00 € | G108: 0.00 € | H108: 0.00 € | I108: 0.00 €
C109: 78 | D109: 2018-06-01 | E109: 0.00 € | F109: 0.00 € | G109: 0.00 € | H109: 0.00 € | I109: 0.00 €
C110: 79 | D110: 2018-07-01 | E110: 0.00 € | F110: 0.00 € | G110: 0.00 € | H110: 0.00 € | I110: 0.00 €
C111: 80 | D111: 2018-08-01 | E111: 0.00 € | F111: 0.00 € | G111: 0.00 € | H111: 0.00 € | I111: 0.00 €
C112: 81 | D112: 2018-09-01 | E112: 0.00 € | F112: 0.00 € | G112: 0.00 € | H112: 0.00 € | I112: 0.00 €
C113: 82 | D113: 2018-10-01 | E113: 0.00 € | F113: 0.00 € | G113: 0.00 € | H113: 0.00 € | I113: 0.00 €
C114: 83 | D114: 2018-11-01 | E114: 0.00 € | F114: 0.00 € | G114: 0.00 € | H114: 0.00 € | I114: 0.00 €
C115: 84 | D115: 2018-12-01 | E115: 0.00 € | F115: 0.00 € | G115: 0.00 € | H115: 0.00 € | I115: 0.00 €
B116: 8 | C116: 85 | D116: 2019-01-01 | E116: 0.00 € | F116: 0.00 € | G116: 0.00 € | H116: 0.00 € | I116: 0.00 €
C117: 86 | D117: 2019-02-01 | E117: 0.00 € | F117: 0.00 € | G117: 0.00 € | H117: 0.00 € | I117: 0.00 €
C118: 87 | D118: 2019-03-01 | E118: 0.00 € | F118: 0.00 € | G118: 0.00 € | H118: 0.00 € | I118: 0.00 €
C119: 88 | D119: 2019-04-01 | E119: 0.00 € | F119: 0.00 € | G119: 0.00 € | H119: 0.00 € | I119: 0.00 €
C120: 89 | D120: 2019-05-01 | E120: 0.00 € | F120: 0.00 € | G120: 0.00 € | H120: 0.00 € | I120: 0.00 €
C121: 90 | D121: 2019-06-01 | E121: 0.00 € | F121: 0.00 € | G121: 0.00 € | H121: 0.00 € | I121: 0.00 €
C122: 91 | D122: 2019-07-01 | E122: 0.00 € | F122: 0.00 € | G122: 0.00 € | H122: 0.00 € | I122: 0.00 €
C123: 92 | D123: 2019-08-01 | E123: 0.00 € | F123: 0.00 € | G123: 0.00 € | H123: 0.00 € | I123: 0.00 €
C124: 93 | D124: 2019-09-01 | E124: 0.00 € | F124: 0.00 € | G124: 0.00 € | H124: 0.00 € | I124: 0.00 €
C125: 94 | D125: 2019-10-01 | E125: 0.00 € | F125: 0.00 € | G125: 0.00 € | H125: 0.00 € | I125: 0.00 €
C126: 95 | D126: 2019-11-01 | E126: 0.00 € | F126: 0.00 € | G126: 0.00 € | H126: 0.00 € | I126: 0.00 €
C127: 96 | D127: 2019-12-01 | E127: 0.00 € | F127: 0.00 € | G127: 0.00 € | H127: 0.00 € | I127: 0.00 €
B128: 9 | C128: 97 | D128: 2020-01-01 | E128: 0.00 € | F128: 0.00 € | G128: 0.00 € | H128: 0.00 € | I128: 0.00 €
C129: 98 | D129: 2020-02-01 | E129: 0.00 € | F129: 0.00 € | G129: 0.00 € | H129: 0.00 € | I129: 0.00 €
C130: 99 | D130: 2020-03-01 | E130: 0.00 € | F130: 0.00 € | G130: 0.00 € | H130: 0.00 € | I130: 0.00 €
C131: 100 | D131: 2020-04-01 | E131: 0.00 € | F131: 0.00 € | G131: 0.00 € | H131: 0.00 € | I131: 0.00 €
C132: 101 | D132: 2020-05-01 | E132: 0.00 € | F132: 0.00 € | G132: 0.00 € | H132: 0.00 € | I132: 0.00 €
C133: 102 | D133: 2020-06-01 | E133: 0.00 € | F133: 0.00 € | G133: 0.00 € | H133: 0.00 € | I133: 0.00 €
C134: 103 | D134: 2020-07-01 | E134: 0.00 € | F134: 0.00 € | G134: 0.00 € | H134: 0.00 € | I134: 0.00 €
C135: 104 | D135: 2020-08-01 | E135: 0.00 € | F135: 0.00 € | G135: 0.00 € | H135: 0.00 € | I135: 0.00 €
C136: 105 | D136: 2020-09-01 | E136: 0.00 € | F136: 0.00 € | G136: 0.00 € | H136: 0.00 € | I136: 0.00 €
C137: 106 | D137: 2020-10-01 | E137: 0.00 € | F137: 0.00 € | G137: 0.00 € | H137: 0.00 € | I137: 0.00 €
C138: 107 | D138: 2020-11-01 | E138: 0.00 € | F138: 0.00 € | G138: 0.00 € | H138: 0.00 € | I138: 0.00 €
C139: 108 | D139: 2020-12-01 | E139: 0.00 € | F139: 0.00 € | G139: 0.00 € | H139: 0.00 € | I139: 0.00 €
C140: 109 | D140: 2021-01-01 | E140: 0.00 € | F140: 0.00 € | G140: 0.00 € | H140: 0.00 € | I140: 0.00 €
C141: 110 | D141: 2021-02-01 | E141: 0.00 € | F141: 0.00 € | G141: 0.00 € | H141: 0.00 € | I141: 0.00 €
C142: 111 | D142: 2021-03-01 | E142: 0.00 € | F142: 0.00 € | G142: 0.00 € | H142: 0.00 € | I142: 0.00 €
C143: 112 | D143: 2021-04-01 | E143: 0.00 € | F143: 0.00 € | G143: 0.00 € | H143: 0.00 € | I143: 0.00 €
C144: 113 | D144: 2021-05-01 | E144: 0.00 € | F144: 0.00 € | G144: 0.00 € | H144: 0.00 € | I144: 0.00 €
C145: 114 | D145: 2021-06-01 | E145: 0.00 € | F145: 0.00 € | G145: 0.00 € | H145: 0.00 € | I145: =IF((E145-G145)<0,0,(E145-G145)) -> 0.00 €
C146: 115 | D146: 2021-07-01 | E146: 0.00 € | F146: 0.00 € | G146: 0.00 € | H146: 0.00 € | I146: 0.00 €
C147: 116 | D147: 2021-08-01 | E147: 0.00 € | F147: 0.00 € | G147: 0.00 € | H147: 0.00 € | I147: 0.00 €
C148: 117 | D148: 2021-09-01 | E148: 0.00 € | F148: 0.00 € | G148: 0.00 € | H148: 0.00 € | I148: 0.00 €
C149: 118 | D149: 2021-10-01 | E149: 0.00 € | F149: 0.00 € | G149: 0.00 € | H149: 0.00 € | I149: 0.00 €
C150: 119 | D150: 2021-11-01 | E150: 0.00 € | F150: 0.00 € | G150: 0.00 € | H150: 0.00 € | I150: 0.00 €
C151: 120 | D151: 2021-12-01 | E151: 0.00 € | F151: 0.00 € | G151: 0.00 € | H151: 0.00 € | I151: 0.00 €
B164: Kapital | F164: =Berechnung!F9 ->  | H164: Tilgungsvariante: | J164: Standard | K164: Standard
B165: Bearbeitungsentgelt | F165: 0.00 € | H165: Jahr 1 | J165: =Berechnung!J9 ->  | K165: Dynamisierung
B166: Anzahl der Raten | F166: =Berechnung!H9 ->  | H166: Jahr 2 | J166: =IF(J164="Standard",J165,J165*1.05) -> 
B167: Einmalbetrag für RSV | H167: Jahr 3 | J167: =IF(J164="Standard",J165,J166*1.05) -> 
B168: Darlehensnennbetrag | F168: =F164+F165+F167 ->  | H168: Jahr 4 | J168: =IF(J164="Standard",J165,J167*1.05) -> 
B169: Nominaler Zinssatz | F169: =G169 ->  | G169: =RATE(F166,-ABS(J165),F168,0,0,0.1)*12 ->  | H169: Jahr 5 | J169: =IF(J164="Standard",J165,J168*1.05) -> 
B170: Effektiver Jahreszins | H170: Jahr 6 | J170: =IF(J164="Standard",J165,J169*1.05) -> 
B171: Summe aller Zahlungen | H171: Jahr 7 | J171: =IF(J164="Standard",J165,J170*1.05) -> 
D172: offener Saldo | F172: =PV(F169/12,F166-J172,J165,0,0) ->  | H172: Anzahl gezahlter Raten | J172: =DATEDIF(D9,TODAY(),"M") -> 
B173: Jahr | C173: Monat | D173: Datum | E173: Kredithöhe | F173: Rate | G173: Tilgung | H173: Zins | I173: Rest | J173: Sondertilgungen
B174: 1 | C174: 1 | D174: =Berechnung!D9 ->  | E174: =F168 ->  | F174: =IF(E174=0,0,$J$165) ->  | G174: =F174-H174 ->  | H174: =E174*$F$27/12 ->  | I174: =IF((E174-G174)<0,0,(E174-G174)) -> 
C175: 2 | D175: =DATE(YEAR(D174),MONTH(D174)+1,DAY(D174)) ->  | E175: =IF((I174-J174)<0,0,(I174-J174)) ->  | F175: =IF(E175=0,0,$J$165) ->  | G175: =F175-H175 ->  | H175: =E175*$F$27/12 -> 
C176: 3 | D176: =DATE(YEAR(D175),MONTH(D175)+1,DAY(D175)) ->  | G176: =F176-H176 -> 
C177: 4
C178: 5
C179: 6
C180: 7
C181: 8
C182: 9
C183: 10
C184: 11
C185: 12
B186: 2 | C186: 13
C187: 14
C188: 15
C189: 16
C190: 17
C191: 18
C192: 19
C193: 20
C194: 21
C195: 22
C196: 23
C197: 24
B198: 3 | C198: 25
C199: 26
C200: 27
C201: 28
C202: 29
C203: 30
C204: 31
C205: 32
C206: 33
C207: 34
C208: 35
C209: 36
B210: 4 | C210: 37
C211: 38
C212: 39
C213: 40
C214: 41
C215: 42
C216: 43
C217: 44
C218: 45
C219: 46 | I219: =IF((E219-G219)<0,0,(E219-G219)) -> 
C220: 47 | I220: =IF((E220-G220)<0,0,(E220-G220)) -> 
C221: 48 | I221: =IF((E221-G221)<0,0,(E221-G221)) -> 
B222: 5 | C222: 49 | I222: =IF((E222-G222)<0,0,(E222-G222)) -> 
C223: 50 | E223: =IF((I222-J222)<0,0,(I222-J222)) ->  | I223: =IF((E223-G223)<0,0,(E223-G223)) -> 
... 200 more rows
